[Event "14e Open International de Quenza"]
[Site "Quenza, France"]
[Date "????.??.??"]
[Round "6.11"]
[White "Isaia, Daniele"]
[Black "Pieri, Pierre-Louis"]
[Result "0-1"]
[TimeControl "5min+3s"]
[WhiteElo "1775"]
[BlackElo "2224"]

1. e4 {[%clk 00:05:03]} {[%emt 00:00:02]} c5 {[%clk 00:05:03]} {[%emt
00:00:03]} 2. Nf3 {[%clk 00:05:03]} {[%emt 00:00:01]} e6 {[%clk 00:05:03]}
{[%emt 00:00:04]} 3. d4 {[%clk 00:05:03]} cxd4 {[%clk 00:05:03]} 4. Nxd4 {[%clk
00:05:03]} Nc6 {[%clk 00:05:03]} {[%emt 00:00:03]} 5. Nc3 {[%clk 00:05:03]}
{[%emt 00:00:02]} Qc7 {[%clk 00:05:03]} {[%emt 00:00:01]} 6. Ndb5 {[%clk
00:05:03]} Qb8 {[%clk 00:05:03]} {[%emt 00:00:01]} 7. Be3 {[%clk 00:05:03]}
{[%emt 00:00:01]} a6 {[%clk 00:05:03]} {[%emt 00:00:03]} 8. Bb6 {[%clk
00:05:03]} {[%emt 00:00:03]} axb5 {[%clk 00:05:03]} 9. Nxb5 {[%clk 00:05:03]}
Bb4+ {[%clk 00:05:03]} 10. c3 {[%clk 00:05:03]} {[%emt 00:00:02]} Ba5 {[%clk
00:05:03]} {[%emt 00:00:01]} 11. Nd6+ {[%clk 00:05:03]} Kf8 {[%clk 00:04:24]}
{[%emt 00:00:42]} 12. Bc5 {[%clk 00:05:03]} {[%emt 00:00:02]} b6 {[%clk
00:03:45]} {[%emt 00:00:42]} 13. Ba3 {[%clk 00:04:56]} {[%emt 00:00:10]} Bxc3+
{[%clk 00:03:44]} {[%emt 00:00:04]} 14. bxc3 {[%clk 00:04:55]} {[%emt
00:00:04]} Rxa3 {[%clk 00:03:44]} {[%emt 00:00:01]} 15. Nc4 {[%clk 00:04:54]}
{[%emt 00:00:05]} Ra8 {[%clk 00:03:11]} {[%emt 00:00:36]} 16. a4 {[%clk
00:04:48]} {[%emt 00:00:08]} Nge7 {[%clk 00:02:52]} {[%emt 00:00:23]} 17. Qb3
{[%clk 00:04:48]} {[%emt 00:00:02]} Qf4 {[%clk 00:02:52]} 18. Bd3 {[%clk
00:04:41]} {[%emt 00:00:10]} Ne5 {[%clk 00:02:49]} {[%emt 00:00:07]} 19. Nxe5
{[%clk 00:04:41]} {[%emt 00:00:03]} Qxe5 {[%clk 00:02:49]} {[%emt 00:00:01]} 20.
O-O {[%clk 00:04:41]} {[%emt 00:00:01]} Ba6 {[%clk 00:02:37]} {[%emt 00:00:15]}
21. c4 {[%clk 00:04:41]} Qc5 {[%clk 00:02:36]} {[%emt 00:00:04]} 22. Rfb1
{[%clk 00:04:28]} {[%emt 00:00:16]} Nc6 {[%clk 00:02:30]} {[%emt 00:00:09]} 23.
Qxb6 {[%clk 00:04:06]} {[%emt 00:00:25]} Qxb6 {[%clk 00:02:30]} {[%emt
00:00:01]} 24. Rxb6 {[%clk 00:04:06]} Ke7 {[%clk 00:02:30]} 25. f4 {[%clk
00:04:06]} {[%emt 00:00:03]} f6 {[%clk 00:02:21]} {[%emt 00:00:12]} 26. Rab1
{[%clk 00:04:03]} {[%emt 00:00:06]} Rhb8 {[%clk 00:02:08]} {[%emt 00:00:15]} 27.
Bf1 {[%clk 00:04:03]} {[%emt 00:00:03]} Bc8 {[%clk 00:02:05]} {[%emt 00:00:06]}
28. Rxb8 {[%clk 00:03:57]} {[%emt 00:00:09]} Rxb8 {[%clk 00:02:05]} 29. Rxb8
Nxb8 {[%clk 00:02:05]} 30. c5 {[%clk 00:03:57]} {[%emt 00:00:02]} Na6 {[%clk
00:01:57]} {[%emt 00:00:12]} 31. Bxa6 {[%clk 00:03:40]} {[%emt 00:00:20]} Bxa6
{[%clk 00:01:57]} 32. Kf2 Kd8 33. Ke3 {[%emt 00:00:02]} Kc7 34. Kd4 Kc6 0-1

[Event "14e Open International de Quenza"]
[Site "Quenza, France"]
[Date "????.??.??"]
[Round "6.12"]
[White "Mullon, Jean-Baptiste"]
[Black "Stubbe, Damien"]
[Result "1-0"]
[TimeControl "5min+3s"]
[WhiteElo "2277"]
[BlackElo "1962"]

1. e4 {[%clk 00:05:03]} {[%emt 00:00:01]} c5 {[%clk 00:05:03]} 2. Nf3 {[%clk
00:05:03]} {[%emt 00:00:02]} Nc6 {[%clk 00:05:03]} {[%emt 00:00:01]} 3. d4
{[%clk 00:05:03]} {[%emt 00:00:03]} cxd4 {[%clk 00:05:03]} {[%emt 00:00:01]} 4.
Nxd4 {[%clk 00:05:03]} {[%emt 00:00:01]} Nf6 {[%clk 00:05:02]} {[%emt
00:00:04]} 5. Nc3 {[%clk 00:05:03]} {[%emt 00:00:01]} e5 {[%clk 00:05:02]}
{[%emt 00:00:01]} 6. Ndb5 {[%clk 00:05:03]} d6 {[%clk 00:05:02]} {[%emt
00:00:02]} 7. Bg5 {[%clk 00:05:03]} {[%emt 00:00:02]} a6 {[%clk 00:05:02]}
{[%emt 00:00:02]} 8. Na3 {[%clk 00:05:03]} b5 {[%clk 00:05:02]} {[%emt
00:00:01]} 9. Nd5 {[%clk 00:05:03]} {[%emt 00:00:02]} Be7 {[%clk 00:05:02]}
{[%emt 00:00:01]} 10. Bxf6 {[%clk 00:05:03]} {[%emt 00:00:02]} Bxf6 {[%clk
00:05:02]} {[%emt 00:00:02]} 11. c4 {[%clk 00:05:03]} b4 {[%clk 00:04:50]}
{[%emt 00:00:16]} 12. Nc2 {[%clk 00:05:03]} {[%emt 00:00:01]} Rb8 {[%clk
00:04:49]} {[%emt 00:00:04]} 13. Qd3 {[%clk 00:04:14]} {[%emt 00:00:52]} O-O
{[%clk 00:04:39]} {[%emt 00:00:13]} 14. g3 {[%clk 00:03:57]} {[%emt 00:00:21]}
Be6 {[%clk 00:03:19]} {[%emt 00:01:22]} 15. h4 {[%clk 00:03:49]} {[%emt
00:00:10]} Bxd5 {[%clk 00:03:19]} {[%emt 00:00:03]} 16. cxd5 {[%clk 00:03:49]}
{[%emt 00:00:01]} Nd4 {[%clk 00:03:16]} {[%emt 00:00:06]} 17. Nxd4 {[%clk
00:03:49]} {[%emt 00:00:02]} exd4 {[%clk 00:03:16]} {[%emt 00:00:02]} 18. Bh3
{[%clk 00:03:49]} a5 {[%clk 00:03:02]} {[%emt 00:00:18]} 19. O-O {[%clk
00:03:49]} {[%emt 00:00:02]} Qb6 {[%clk 00:03:02]} {[%emt 00:00:03]} 20. Rfc1
{[%clk 00:03:44]} {[%emt 00:00:08]} b3 {[%clk 00:02:52]} {[%emt 00:00:13]} 21.
Rc6 {[%clk 00:03:36]} {[%emt 00:00:11]} Qb5 {[%clk 00:02:37]} {[%emt 00:00:17]}
22. Qxb5 {[%clk 00:03:23]} {[%emt 00:00:17]} Rxb5 {[%clk 00:02:37]} {[%emt
00:00:01]} 23. Bf1 {[%clk 00:03:23]} {[%emt 00:00:01]} Rb4 {[%clk 00:02:19]}
{[%emt 00:00:21]} 24. a3 {[%clk 00:03:16]} {[%emt 00:00:10]} Rbb8 {[%clk
00:02:10]} {[%emt 00:00:12]} 25. Bd3 {[%clk 00:03:16]} {[%emt 00:00:01]} Rfc8
{[%clk 00:01:43]} {[%emt 00:00:30]} 26. Rac1 {[%clk 00:03:16]} Rxc6 {[%clk
00:01:43]} {[%emt 00:00:01]} 27. Rxc6 {[%clk 00:03:16]} Be7 {[%clk 00:01:43]}
{[%emt 00:00:01]} 28. f4 {[%clk 00:03:09]} {[%emt 00:00:10]} f5 {[%clk
00:01:27]} {[%emt 00:00:19]} 29. e5 {[%clk 00:02:42]} {[%emt 00:00:31]} dxe5
{[%clk 00:01:17]} {[%emt 00:00:13]} 30. fxe5 {[%clk 00:02:42]} Bxa3 {[%clk
00:01:06]} {[%emt 00:00:15]} 31. bxa3 {[%clk 00:02:42]} b2 {[%clk 00:01:06]} 32.
e6 {[%clk 00:02:42]} {[%emt 00:00:01]} Kf8 {[%clk 00:01:06]} {[%emt 00:00:01]}
33. d6 {[%clk 00:02:42]} {[%emt 00:00:01]} b1=Q+ {[%clk 00:00:59]} {[%emt
00:00:10]} 34. Bxb1 {[%clk 00:02:42]} {[%emt 00:00:03]} Rxb1+ {[%clk 00:00:59]}
{[%emt 00:00:02]} 35. Kg2 {[%clk 00:02:42]} {[%emt 00:00:01]} Rb8 {[%clk
00:00:59]} {[%emt 00:00:02]} 36. Kf3 {[%clk 00:02:42]} {[%emt 00:00:02]} 1-0

[Event "14e Open International de Quenza"]
[Site "Quenza, France"]
[Date "????.??.??"]
[Round "7.1"]
[White "Dardha, Daniel"]
[Black "Hou, Yifan"]
[Result "1/2-1/2"]
[TimeControl "5min+3s"]
[WhiteElo "2627"]
[BlackElo "2633"]

1. e4 {[%clk 00:05:03]} {[%emt 00:00:02]} c5 {[%clk 00:05:03]} {[%emt
00:00:02]} 2. Nc3 {[%clk 00:05:03]} {[%emt 00:00:02]} d6 {[%clk 00:05:02]}
{[%emt 00:00:04]} 3. Nge2 {[%clk 00:05:03]} {[%emt 00:00:02]} a6 {[%clk
00:04:59]} {[%emt 00:00:07]} 4. g3 {[%clk 00:05:00]} {[%emt 00:00:06]} Nf6
{[%clk 00:04:39]} {[%emt 00:00:23]} 5. Bg2 {[%clk 00:05:00]} {[%emt 00:00:02]}
e6 {[%clk 00:04:36]} {[%emt 00:00:06]} 6. d4 {[%clk 00:04:58]} {[%emt
00:00:05]} cxd4 {[%clk 00:04:36]} {[%emt 00:00:02]} 7. Nxd4 {[%clk 00:04:58]}
{[%emt 00:00:01]} Bd7 {[%clk 00:04:35]} {[%emt 00:00:05]} 8. g4 {[%clk
00:04:55]} {[%emt 00:00:05]} h6 {[%clk 00:04:12]} {[%emt 00:00:26]} 9. h4
{[%clk 00:04:55]} {[%emt 00:00:04]} Nc6 {[%clk 00:03:33]} {[%emt 00:00:43]} 10.
g5 {[%clk 00:04:49]} {[%emt 00:00:09]} hxg5 {[%clk 00:03:32]} {[%emt 00:00:04]}
11. hxg5 {[%clk 00:04:49]} {[%emt 00:00:02]} Rxh1+ {[%clk 00:03:32]} 12. Bxh1
{[%clk 00:04:49]} {[%emt 00:00:02]} Nxd4 {[%clk 00:03:32]} 13. Qxd4 {[%clk
00:04:49]} {[%emt 00:00:02]} Ng4 {[%clk 00:02:40]} {[%emt 00:00:54]} 14. f3
{[%clk 00:04:14]} {[%emt 00:00:39]} Ne5 {[%clk 00:02:37]} {[%emt 00:00:06]} 15.
f4 {[%clk 00:04:14]} {[%emt 00:00:01]} Nc6 {[%clk 00:02:37]} {[%emt 00:00:02]}
16. Qf2 {[%clk 00:04:14]} {[%emt 00:00:02]} g6 {[%clk 00:02:12]} {[%emt
00:00:28]} 17. Be3 {[%clk 00:04:07]} {[%emt 00:00:09]} Bg7 {[%clk 00:02:12]}
{[%emt 00:00:02]} 18. Bb6 {[%clk 00:04:00]} {[%emt 00:00:10]} Qe7 {[%clk
00:02:12]} {[%emt 00:00:02]} 19. O-O-O {[%clk 00:03:49]} {[%emt 00:00:14]} Bxc3
{[%clk 00:01:48]} {[%emt 00:00:28]} 20. bxc3 {[%clk 00:03:49]} {[%emt
00:00:01]} e5 {[%clk 00:01:48]} {[%emt 00:00:01]} 21. Bc7 {[%clk 00:03:29]}
{[%emt 00:00:23]} exf4 {[%clk 00:00:55]} {[%emt 00:00:55]} 22. Qxf4 {[%clk
00:02:32]} {[%emt 00:00:59]} Qe5 {[%clk 00:00:31]} {[%emt 00:00:28]} 23. Qf6
{[%clk 00:02:18]} {[%emt 00:00:16]} Be6 {[%clk 00:00:30]} {[%emt 00:00:05]} 24.
Bxd6 {[%clk 00:02:10]} {[%emt 00:00:11]} Qxf6 {[%clk 00:00:30]} {[%emt
00:00:01]} 25. gxf6 {[%clk 00:02:10]} {[%emt 00:00:03]} Bxa2 {[%clk 00:00:28]}
{[%emt 00:00:05]} 26. e5 {[%clk 00:02:10]} {[%emt 00:00:03]} Be6 {[%clk
00:00:21]} {[%emt 00:00:10]} 27. Be4 {[%clk 00:01:56]} {[%emt 00:00:17]} Rc8
{[%clk 00:00:16]} {[%emt 00:00:08]} 28. Rh1 {[%clk 00:01:51]} {[%emt 00:00:07]}
Na5 {[%clk 00:00:10]} {[%emt 00:00:10]} 29. Rh7 {[%clk 00:01:30]} {[%emt
00:00:24]} Nc4 {[%clk 00:00:07]} {[%emt 00:00:06]} 30. Bxb7 {[%clk 00:01:06]}
{[%emt 00:00:27]} Nxd6 {[%clk 00:00:07]} 31. exd6 {[%clk 00:01:06]} {[%emt
00:00:02]} Rxc3 {[%clk 00:00:07]} {[%emt 00:00:01]} 32. Kd2 {[%clk 00:00:39]}
{[%emt 00:00:29]} Rc5 {[%clk 00:00:07]} {[%emt 00:00:01]} 33. Be4 {[%clk
00:00:34]} {[%emt 00:00:08]} Kd7 {[%clk 00:00:05]} {[%emt 00:00:05]} 34. Bxg6
{[%clk 00:00:34]} {[%emt 00:00:01]} Kxd6 {[%clk 00:00:05]} 35. Bxf7 {[%clk
00:00:34]} Rc7 {[%clk 08:00:04]} {[%emt 00:00:04]} 36. Bg6 {[%clk 00:00:32]}
{[%emt 00:00:05]} Rxh7 {[%clk 00:00:04]} {[%emt 00:00:01]} 37. Bxh7 {[%clk
00:00:32]} Ke5 {[%clk 00:00:04]} 38. Bd3 {[%clk 00:00:32]} {[%emt 00:00:02]} a5
{[%clk 00:00:04]} {[%emt 00:00:02]} 39. c4 {[%clk 00:00:29]} {[%emt 00:00:05]}
Bxc4 {[%clk 00:00:04]} {[%emt 00:00:03]} 40. Bxc4 {[%clk 00:00:29]} Kxf6 41.
Bb3 Ke5 {[%emt 00:00:07]} 1/2-1/2

[Event "14e Open International de Quenza"]
[Site "Quenza, France"]
[Date "????.??.??"]
[Round "7.2"]
[White "Sumets, Andrey"]
[Black "Bellahcene, Bilel"]
[Result "1-0"]
[TimeControl "5min+3s"]
[WhiteElo "2497"]
[BlackElo "2513"]

1. d4 {[%clk 00:05:03]} {[%emt 00:11:27]} Nf6 {[%clk 00:05:03]} {[%emt
00:00:01]} 2. c4 {[%clk 00:05:03]} {[%emt 00:00:01]} e6 {[%clk 00:05:03]}
{[%emt 00:00:01]} 3. Nf3 {[%clk 00:05:03]} {[%emt 00:00:01]} Bb4+ {[%clk
00:05:03]} {[%emt 00:00:04]} 4. Bd2 {[%clk 00:04:56]} {[%emt 00:00:10]} a5
{[%clk 00:05:03]} {[%emt 00:00:02]} 5. g3 {[%clk 00:04:56]} {[%emt 00:00:02]}
O-O {[%clk 00:05:03]} 6. Bg2 {[%clk 00:04:56]} {[%emt 00:00:01]} d5 {[%clk
00:05:03]} {[%emt 00:00:01]} 7. a3 {[%clk 00:04:32]} {[%emt 00:00:27]} Be7
{[%clk 00:05:03]} {[%emt 00:00:03]} 8. Qc2 {[%clk 00:04:32]} {[%emt 00:00:03]}
dxc4 {[%clk 00:04:58]} {[%emt 00:00:08]} 9. Qxc4 {[%clk 00:04:32]} {[%emt
00:00:01]} b6 {[%clk 00:04:58]} {[%emt 00:00:03]} 10. Bg5 {[%clk 00:04:11]}
{[%emt 00:00:24]} Bb7 {[%clk 00:04:17]} {[%emt 00:00:45]} 11. O-O {[%clk
00:04:07]} {[%emt 00:00:06]} Bd5 {[%clk 00:04:17]} {[%emt 00:00:01]} 12. Qc2
{[%clk 00:04:07]} {[%emt 00:00:02]} Be4 {[%clk 00:04:12]} {[%emt 00:00:08]} 13.
Qc1 {[%clk 00:04:02]} {[%emt 00:00:07]} Nbd7 {[%clk 00:04:03]} {[%emt
00:00:13]} 14. Nc3 {[%clk 00:04:02]} {[%emt 00:00:04]} Bb7 {[%clk 00:04:03]}
{[%emt 00:00:01]} 15. Rd1 {[%clk 00:03:59]} {[%emt 00:00:04]} Rc8 {[%clk
00:03:25]} {[%emt 00:00:42]} 16. Ne5 {[%clk 00:03:40]} {[%emt 00:00:22]} Bxg2
{[%clk 00:03:25]} {[%emt 00:00:01]} 17. Kxg2 {[%clk 00:03:40]} {[%emt
00:00:01]} Qe8 {[%clk 00:03:23]} {[%emt 00:00:05]} 18. Nc6 {[%clk 00:03:29]}
{[%emt 00:00:13]} Bd6 {[%clk 00:03:05]} {[%emt 00:00:22]} 19. e4 {[%clk
00:03:20]} {[%emt 00:00:12]} h6 {[%clk 00:02:45]} {[%emt 00:00:23]} 20. Bxf6
{[%clk 00:02:44]} {[%emt 00:00:39]} Nxf6 {[%clk 00:02:45]} 21. Na7 {[%clk
00:02:40]} {[%emt 00:00:07]} Ra8 {[%clk 00:02:45]} {[%emt 00:00:02]} 22. Nab5
{[%clk 00:02:30]} {[%emt 00:00:13]} Nxe4 {[%clk 00:02:32]} {[%emt 00:00:16]} 23.
Nxc7 {[%clk 00:02:24]} {[%emt 00:00:09]} Bxc7 {[%clk 00:02:26]} {[%emt
00:00:09]} 24. Nxe4 {[%clk 00:02:24]} {[%emt 00:00:01]} Rc8 {[%clk 00:02:26]}
{[%emt 00:00:03]} 25. Qe3 {[%clk 00:02:19]} {[%emt 00:00:08]} f5 {[%clk
00:01:56]} {[%emt 00:00:34]} 26. Nc3 {[%clk 00:02:19]} {[%emt 00:00:03]} f4
{[%clk 00:01:56]} 27. Qe4 {[%clk 00:02:18]} {[%emt 00:00:03]} f3+ {[%clk
00:01:56]} {[%emt 00:00:02]} 28. Kg1 {[%clk 00:02:02]} {[%emt 00:00:19]} Rf6
{[%clk 00:01:56]} {[%emt 00:00:01]} 29. d5 {[%clk 00:01:42]} {[%emt 00:00:23]}
Qh5 {[%clk 00:01:52]} {[%emt 00:00:06]} 30. h4 {[%clk 00:01:24]} {[%emt
00:00:21]} Be5 {[%clk 00:00:53]} {[%emt 00:01:03]} 31. dxe6 {[%clk 00:01:11]}
{[%emt 00:00:16]} Rxe6 {[%clk 00:00:32]} {[%emt 00:00:24]} 32. Rd3 {[%clk
00:01:01]} {[%emt 00:00:13]} Rf8 {[%clk 00:00:23]} {[%emt 00:00:12]} 33. Re1
{[%clk 00:00:47]} {[%emt 00:00:16]} Rf4 {[%clk 00:00:23]} 34. Qd5 {[%clk
00:00:45]} {[%emt 00:00:06]} Rff6 {[%clk 00:00:07]} {[%emt 00:00:19]} 35. Ne4
{[%clk 00:00:30]} {[%emt 00:00:17]} Rg6 {[%clk 00:00:07]} {[%emt 00:00:02]} 36.
Nd2 {[%clk 00:00:23]} {[%emt 00:00:10]} Qxh4 {[%clk 00:00:07]} {[%emt
00:00:03]} 37. Qxe6+ {[%clk 00:00:23]} {[%emt 00:00:02]} Rxe6 {[%clk 00:00:07]}
{[%emt 00:00:03]} 38. gxh4 {[%clk 00:00:23]} 1-0

[Event "14e Open International de Quenza"]
[Site "Quenza, France"]
[Date "????.??.??"]
[Round "7.3"]
[White "Lagarde, Maxime"]
[Black "Toktomushev, Teimur"]
[Result "1-0"]
[TimeControl "5min+3s"]
[WhiteElo "2618"]
[BlackElo "2401"]

1. e4 {[%clk 00:05:03]} c5 {[%clk 00:05:03]} {[%emt 00:00:02]} 2. Nf3 {[%clk
00:05:03]} {[%emt 00:00:01]} e6 {[%clk 00:05:03]} {[%emt 00:00:01]} 3. c3
{[%clk 00:05:03]} {[%emt 00:00:01]} d5 {[%clk 00:05:03]} {[%emt 00:00:01]} 4.
e5 {[%clk 00:05:03]} {[%emt 00:00:01]} d4 {[%clk 00:05:03]} {[%emt 00:00:02]} 5.
g3 {[%clk 00:05:03]} Nc6 {[%clk 00:04:53]} {[%emt 00:00:13]} 6. Bg2 {[%clk
00:05:03]} {[%emt 00:00:02]} Nge7 {[%clk 00:04:51]} {[%emt 00:00:05]} 7. O-O
{[%clk 00:05:03]} {[%emt 00:00:02]} b6 {[%clk 00:04:37]} {[%emt 00:00:18]} 8.
cxd4 {[%clk 00:04:48]} {[%emt 00:00:18]} cxd4 {[%clk 00:04:36]} {[%emt
00:00:04]} 9. d3 {[%clk 00:04:48]} Bb7 {[%clk 00:04:28]} {[%emt 00:00:10]} 10.
Nbd2 {[%clk 00:04:48]} {[%emt 00:00:02]} h6 {[%clk 00:04:13]} {[%emt 00:00:18]}
11. h4 {[%clk 00:04:46]} {[%emt 00:00:05]} Rc8 {[%clk 00:03:37]} {[%emt
00:00:39]} 12. a3 {[%clk 00:04:45]} {[%emt 00:00:04]} Nd5 {[%clk 00:03:21]}
{[%emt 00:00:19]} 13. h5 {[%clk 00:04:29]} {[%emt 00:00:19]} a5 {[%clk
00:02:52]} {[%emt 00:00:32]} 14. Re1 {[%clk 00:04:26]} {[%emt 00:00:06]} b5
{[%clk 00:01:54]} {[%emt 00:01:01]} 15. Nf1 {[%clk 00:03:54]} {[%emt 00:00:34]}
a4 {[%clk 00:01:49]} {[%emt 00:00:09]} 16. Bd2 {[%clk 00:03:30]} {[%emt
00:00:27]} Be7 {[%clk 00:01:10]} {[%emt 00:00:41]} 17. Re4 {[%clk 00:03:24]}
{[%emt 00:00:10]} Qb6 {[%clk 00:01:09]} {[%emt 00:00:05]} 18. N1h2 {[%clk
00:03:15]} {[%emt 00:00:12]} Ra8 {[%clk 00:00:38]} {[%emt 00:00:34]} 19. Rg4
{[%clk 00:03:13]} {[%emt 00:00:05]} Kf8 {[%clk 00:00:38]} {[%emt 00:00:03]} 20.
Qe1 {[%clk 00:03:04]} {[%emt 00:00:11]} b4 {[%clk 00:00:37]} {[%emt 00:00:05]}
21. Nh4 {[%clk 00:03:02]} {[%emt 00:00:05]} Na5 {[%clk 00:00:30]} {[%emt
00:00:10]} 22. N2f3 {[%clk 00:02:27]} {[%emt 00:00:37]} Nb3 {[%clk 00:00:30]}
{[%emt 00:00:01]} 23. Rb1 {[%clk 00:02:02]} {[%emt 00:00:28]} Ba6 {[%clk
00:00:30]} {[%emt 00:00:01]} 24. Qe4 {[%clk 00:01:59]} {[%emt 00:00:05]} Rc8
{[%clk 00:00:16]} {[%emt 00:00:18]} 25. Ng6+ {[%clk 00:01:57]} {[%emt
00:00:06]} fxg6 {[%clk 00:00:16]} {[%emt 00:00:02]} 26. Qxg6 {[%clk 00:01:57]}
Nxd2 {[%clk 00:00:08]} {[%emt 00:00:11]} 27. Nxd2 {[%clk 00:01:53]} {[%emt
00:00:06]} Rg8 {[%clk 00:00:08]} {[%emt 00:00:01]} 28. Bxd5 {[%clk 00:01:53]}
{[%emt 00:00:03]} Bxd3 {[%clk 00:00:05]} {[%emt 00:00:07]} 29. Rf4+ {[%clk
00:01:41]} {[%emt 00:00:15]} Bf6 {[%clk 00:00:05]} {[%emt 00:00:02]} 30. Qxd3
{[%clk 00:01:34]} {[%emt 00:00:09]} 1-0

[Event "14e Open International de Quenza"]
[Site "Quenza, France"]
[Date "????.??.??"]
[Round "7.4"]
[White "Ternault, Mathieu"]
[Black "Fressinet, Laurent"]
[Result "0-1"]
[TimeControl "5min+3s"]
[WhiteElo "2276"]
[BlackElo "2605"]

1. d4 {[%clk 00:05:03]} d5 {[%clk 00:05:03]} {[%emt 00:00:03]} 2. Nf3 {[%clk
00:05:01]} {[%emt 00:00:06]} Nf6 {[%clk 00:05:03]} {[%emt 00:00:01]} 3. c3
{[%clk 00:05:00]} {[%emt 00:00:04]} e6 {[%clk 00:04:54]} {[%emt 00:00:13]} 4.
Bg5 {[%clk 00:05:00]} {[%emt 00:00:01]} h6 {[%clk 00:04:54]} {[%emt 00:00:02]}
5. Bf4 {[%clk 00:04:55]} {[%emt 00:00:07]} g5 {[%clk 00:04:27]} {[%emt
00:00:30]} 6. Be5 {[%clk 00:04:03]} {[%emt 00:00:55]} Nbd7 {[%clk 00:04:27]}
{[%emt 00:00:02]} 7. Nbd2 {[%clk 00:04:03]} {[%emt 00:00:03]} Bg7 {[%clk
00:04:05]} {[%emt 00:00:25]} 8. e3 {[%clk 00:03:21]} {[%emt 00:00:45]} Nxe5
{[%clk 00:03:50]} {[%emt 00:00:18]} 9. Nxe5 {[%clk 00:03:12]} {[%emt 00:00:12]}
Nd7 {[%clk 00:03:50]} {[%emt 00:00:01]} 10. Nxd7 {[%clk 00:02:57]} {[%emt
00:00:19]} Bxd7 {[%clk 00:03:47]} {[%emt 00:00:06]} 11. h4 {[%clk 00:02:17]}
{[%emt 00:00:42]} Qe7 {[%clk 00:03:44]} {[%emt 00:00:06]} 12. a4 {[%clk
00:02:17]} {[%emt 00:00:01]} e5 {[%clk 00:02:52]} {[%emt 00:00:55]} 13. dxe5
{[%clk 00:02:17]} {[%emt 00:00:02]} Bxe5 {[%clk 00:02:52]} {[%emt 00:00:02]} 14.
Nf3 {[%clk 00:02:17]} {[%emt 00:00:02]} g4 {[%clk 00:02:20]} {[%emt 00:00:35]}
15. Nxe5 {[%clk 00:02:00]} {[%emt 00:00:20]} Qxe5 {[%clk 00:02:20]} 16. g3
{[%clk 00:01:57]} {[%emt 00:00:06]} Qe4 {[%clk 00:02:09]} {[%emt 00:00:14]} 17.
Rg1 {[%clk 00:01:46]} {[%emt 00:00:14]} c6 {[%clk 00:01:51]} {[%emt 00:00:21]}
18. a5 {[%clk 00:01:37]} {[%emt 00:00:12]} Qe5 {[%clk 00:01:45]} {[%emt
00:00:09]} 19. Be2 {[%clk 00:00:58]} {[%emt 00:00:42]} h5 {[%clk 00:01:33]}
{[%emt 00:00:15]} 20. Qd2 {[%clk 00:00:45]} {[%emt 00:00:16]} O-O-O {[%clk
00:01:25]} {[%emt 00:00:11]} 21. b4 {[%clk 00:00:39]} {[%emt 00:00:09]} Kb8
{[%clk 00:01:08]} {[%emt 00:00:20]} 22. O-O-O {[%clk 00:00:22]} {[%emt
00:00:20]} Rh6 {[%clk 00:01:06]} {[%emt 00:00:05]} 23. Qd4 {[%clk 00:00:18]}
{[%emt 00:00:08]} f6 {[%clk 00:00:52]} {[%emt 00:00:17]} 24. Kb2 {[%clk
00:00:17]} {[%emt 00:00:03]} Rhh8 {[%clk 00:00:48]} {[%emt 00:00:07]} 25. Qc5
{[%clk 00:00:13]} {[%emt 00:00:08]} Rhe8 {[%clk 00:00:33]} {[%emt 00:00:17]} 26.
Rd4 {[%clk 00:00:13]} {[%emt 00:00:01]} Qc7 {[%clk 00:00:29]} {[%emt 00:00:07]}
27. Rf4 {[%clk 00:00:07]} {[%emt 00:00:09]} f5 {[%clk 00:00:27]} {[%emt
00:00:05]} 28. Rd1 {[%clk 00:00:07]} {[%emt 00:00:02]} Re4 {[%clk 00:00:26]}
{[%emt 00:00:04]} 29. Rxe4 {[%clk 00:00:06]} {[%emt 00:00:05]} fxe4 {[%clk
00:00:26]} 30. Qe7 {[%clk 00:00:06]} {[%emt 00:00:01]} Bc8 {[%clk 00:00:26]}
{[%emt 00:00:02]} 31. Qxc7+ {[%clk 00:00:06]} {[%emt 00:00:02]} Kxc7 {[%clk
00:00:26]} 32. c4 {[%clk 00:00:05]} {[%emt 00:00:03]} Rf8 {[%clk 00:00:26]}
{[%emt 00:00:03]} 33. Rf1 {[%clk 00:00:05]} {[%emt 00:00:02]} Be6 {[%clk
00:00:26]} {[%emt 00:00:03]} 34. c5 {[%clk 00:00:05]} {[%emt 00:00:03]} b6
{[%clk 00:00:26]} {[%emt 00:00:02]} 35. axb6+ {[%clk 00:00:05]} axb6 {[%clk
00:00:26]} 36. cxb6+ Kxb6 {[%clk 00:00:26]} 37. Kc3 {[%clk 00:00:05]} Kc7
{[%clk 00:00:26]} {[%emt 00:00:03]} 38. Kd4 {[%clk 00:00:04]} Kd6 39. Kc3
{[%emt 00:00:06]} Ke5 {[%clk 00:00:25]} {[%emt 00:00:02]} 40. Kd2 {[%clk
00:00:04]} {[%emt 00:00:01]} Ra8 {[%clk 00:00:25]} {[%emt 00:00:03]} 41. Rc1
{[%clk 00:00:04]} {[%emt 00:00:01]} Bd7 {[%clk 00:00:25]} {[%emt 00:00:03]} 42.
Kc3 {[%clk 00:00:04]} Rf8 {[%clk 00:00:24]} {[%emt 00:00:04]} 43. Rf1 {[%clk
00:00:04]} {[%emt 00:00:01]} Bc8 {[%clk 00:00:24]} {[%emt 00:00:02]} 44. Kd2
{[%clk 00:00:04]} {[%emt 00:00:02]} Kd6 {[%clk 00:00:24]} 45. Kc3 {[%clk
00:00:04]} Rf7 {[%clk 00:00:24]} {[%emt 00:00:04]} 46. Kd4 {[%clk 00:00:04]}
Bb7 {[%clk 00:00:23]} {[%emt 00:00:04]} 47. Bd1 {[%clk 00:00:04]} {[%emt
00:00:02]} Ba6 {[%clk 00:00:23]} 48. Re1 {[%clk 00:00:04]} {[%emt 00:00:02]}
Rxf2 {[%clk 00:00:23]} {[%emt 00:00:01]} 49. Ba4 {[%clk 00:00:04]} Rd2+ {[%clk
00:00:19]} {[%emt 00:00:06]} 50. Kc3 {[%clk 00:00:04]} Rd3+ {[%clk 00:00:19]}
{[%emt 00:00:02]} 51. Kb2 {[%clk 00:00:04]} {[%emt 00:00:01]} Bc4 {[%clk
00:00:13]} {[%emt 00:00:07]} 52. Bc2 {[%clk 00:00:04]} {[%emt 00:00:03]} Rd2
{[%clk 00:00:13]} {[%emt 00:00:01]} 53. Kc3 {[%clk 00:00:04]} Rg2 {[%clk
00:00:13]} {[%emt 00:00:01]} 54. Bxe4 {[%clk 00:00:04]} {[%emt 00:00:03]} Rxg3
{[%clk 00:00:11]} {[%emt 00:00:06]} 55. Bg6 {[%clk 00:00:04]} Rh3 {[%clk
00:00:09]} {[%emt 00:00:05]} 56. Bxh5 {[%clk 00:00:04]} {[%emt 00:00:02]} Rxh4
{[%clk 00:00:09]} 57. Bg6 {[%clk 00:00:04]} g3 {[%clk 00:00:09]} 58. e4 {[%clk
00:00:04]} {[%emt 00:00:02]} g2 {[%clk 00:00:08]} {[%emt 00:00:04]} 59. e5+
{[%clk 00:00:04]} {[%emt 00:00:03]} Ke7 {[%clk 00:00:08]} 60. Rg1 {[%clk
00:00:04]} {[%emt 00:00:02]} Bf1 {[%clk 00:00:08]} 61. Kd2 {[%clk 00:00:04]}
{[%emt 00:00:02]} Rh1 {[%clk 00:00:08]} {[%emt 00:00:01]} 0-1